fUST/lending_fUST_20241109
["ID","MTS","AMOUNT","RATE_DAILY","PERIOD"]
[341701452,1731106232446,-202.38596428,0.0002638,2]
[341701453,1731106232458,-297.61403572,0.0002638,2]
[341701454,1731106232467,-500.0,0.0002638,2]
[341701455,1731106232476,-502.17867385,0.0002638,2]
[341701456,1731106232485,-500.0,0.0002638,2]
[341701457,1731106232494,-502.21225408,0.0002638,2]
[341701458,1731106232503,-500.0,0.0002638,2]
[341701459,1731106232512,-291.19995928,0.0002638,2]
[341701460,1731106232521,-500.0,0.0002638,2]
[341701461,1731106232530,-504.39942117,0.0002638,2]
[341701462,1731106232539,-343.24506864,0.0002638,2]
[341701463,1731106232548,-500.0,0.0002638,2]
[341701464,1731106232557,-508.72536043,0.0002638,2]
[341701465,1731106232567,-417.65015832,0.0002638,2]
[341701466,1731106232576,-24613.3799593,0.0002638,2]
[341701467,1731106232585,-171.13949876,0.00026409,2]
[341701468,1731106232595,-1050.869963,0.00026509,2]
[341701469,1731106232604,-202.0815809,0.00026732,2]
[341701470,1731106232613,-162.213846,0.00027321,2]
[341701471,1731106232622,-450.25865176,0.00027556,2]
[341701472,1731106232631,-500.0,0.00027655,2]
[341701473,1731106232641,-500.0,0.00027655,2]
[341701474,1731106232650,-501.34584197,0.00027655,2]
[341701475,1731106232660,-357.93924441,0.00027655,2]
[341701476,1731106232671,-142.06075559,0.00027655,2]
[341701477,1731106232680,-298.98521423,0.00027655,2]
[341701478,1731106232691,-201.01478577,0.00027655,2]
[341701479,1731106232701,-500.0,0.00027655,2]
[341701480,1731106232710,-507.89734265,0.00027655,2]
[341701481,1731106232719,-504.19722138,0.00027655,2]
[341701482,1731106232730,-415.93689936,0.00027655,2]
[341701491,1731106240092,-227.112472,0.00025387,2]
[341701492,1731106240102,-84.06310064,0.00027655,2]
[341701493,1731106240112,-500.0,0.00027655,2]
[341701494,1731106240122,-500.0,0.00027655,2]
[341701495,1731106240132,-500.0,0.00027655,2]
[341701496,1731106240142,-205.15873492,0.00027655,2]
[341701508,1731106243280,-294.84126508,0.00027655,2]
[341701509,1731106243384,-503.99864766,0.00027655,2]
[341701510,1731106243395,-500.0,0.00027655,2]
[341701511,1731106243404,-535.97456293,0.00027655,2]
[341701512,1731106243414,-502.93889895,0.00027655,2]
[341701513,1731106243423,-500.0,0.00027655,2]
[341701514,1731106243432,-500.0,0.00027655,2]
[341701515,1731106243442,-406.86665836,0.00027655,2]
[341701516,1731106243454,-93.13334164,0.00027655,2]
[341701517,1731106243463,-500.0,0.00027655,2]
[341701518,1731106243475,-500.0,0.00027655,2]
[341701519,1731106243484,-518.54242753,0.00027655,2]
[341701520,1731106243496,-533.50621432,0.00027655,2]
[341701521,1731106243507,-432.24070036,0.00027655,2]
[341701525,1731106246066,-74.17371661,0.00027655,2]
[341701526,1731106246077,-265.53894853,0.00027655,2]
[341701527,1731106246090,-134.46105147,0.00027655,2]
[341701528,1731106246100,-446.70449287,0.00027655,2]
[341701529,1731106246848,167.775363,0.00013973,2]
[341701530,1731106324254,694.44444444,0.00020843,2]
[341701532,1731106635739,694.44444444,0.00020843,2]
[341701533,1731106870054,300.0,0.00031729,30]
[341701536,1731106947977,694.44444444,0.00020843,2]
[341701537,1731106982174,277.0,0.00031729,30]
[341701543,1731107259391,694.44444444,0.00020843,2]
[341701627,1731107432178,-694.44444444,0.00023457,2]
[341701629,1731107432188,-300.0,0.00024626,2]
[341701631,1731107432198,-300.0,0.00024626,2]
[341701633,1731107432207,-24880.0,0.00024627,2]
[341701635,1731107432217,-3000.0,0.000252,2]
[341701637,1731107432227,-250.0,0.00025202,2]
[341701639,1731107432237,-2876.5405581,0.00025202,2]
[341701640,1731107432246,-201.160389,0.00025799,2]
[341701641,1731107432256,-500.0,0.00025964,2]
[341701642,1731107432265,-500.0,0.00025964,2]
[341701643,1731107432275,-500.0,0.00025964,2]
[341701644,1731107432285,-500.0,0.00025964,2]
[341701645,1731107432294,-500.0,0.00025964,2]
[341701646,1731107432304,-500.0,0.00025964,2]
[341701648,1731107432314,-506.00306718,0.00025964,2]
[341701649,1731107432325,-500.0,0.00025964,2]
[341701651,1731107432334,-500.0,0.00025964,2]
[341701652,1731107432343,-482.42200163,0.00025964,2]
[341701653,1731107432353,-500.0,0.00025964,2]
[341701654,1731107432362,-387.64787242,0.00025964,2]
[341701655,1731107432372,-500.0,0.00025964,2]
[341701656,1731107432381,-500.0,0.00025964,2]
[341701657,1731107432391,-500.0,0.00025964,2]
[341701658,1731107432401,-500.0,0.00025964,2]
[341701659,1731107432410,-500.0,0.00025964,2]
[341701660,1731107432420,-500.0,0.00025964,2]
[341701661,1731107432430,-293.27168953,0.00025964,2]
[341701662,1731107432439,-639.63,0.00025964,2]
[341701663,1731107432448,-500.0,0.00025964,2]
[341701664,1731107432458,-500.0,0.00025964,2]
[341701665,1731107432467,-500.0,0.00025964,2]
[341701666,1731107432477,-500.0,0.00025964,2]
[341701667,1731107432486,-421.57155458,0.00026238,2]
[341701668,1731107432496,-500.0,0.00026238,2]
[341701669,1731107432505,-500.0,0.00026238,2]
[341701670,1731107432514,-400.89,0.00026238,2]
[341701671,1731107432524,-184.858706,0.00026293,2]
[341701672,1731107432533,-155.222,0.00026293,13]
[341701673,1731107432543,-509.47477982,0.0002638,2]
[341701674,1731107432552,-500.0,0.0002638,2]
[341701675,1731107432562,-509.86861745,0.0002638,2]
[341701676,1731107432572,-639.69912856,0.0002638,2]
[341701677,1731107432582,-500.0,0.0002638,2]
[341701678,1731107432591,-500.0,0.0002638,2]
[341701679,1731107432600,-504.55218784,0.0002638,2]
[341701680,1731107432610,-500.0,0.0002638,2]
[341701681,1731107432619,-500.0,0.0002638,2]
[341701682,1731107432629,-183.71723511,0.0002638,2]
[341701683,1731107432638,-500.0,0.0002638,2]
[341701684,1731107432648,-500.0,0.0002638,2]
[341701685,1731107432657,-500.0,0.0002638,2]
[341701686,1731107432667,-500.0,0.0002638,2]
[341701687,1731107432676,-540.75255349,0.0002638,2]
[341701688,1731107432686,-500.0,0.0002638,2]
[341701689,1731107432695,-500.0,0.0002638,2]
[341701690,1731107432704,-500.0,0.0002638,2]
[341701691,1731107432714,-500.0,0.0002638,2]
[341701692,1731107432723,-502.81674764,0.0002638,2]
[341701693,1731107432733,-500.0,0.0002638,2]
[341701694,1731107432742,-500.0,0.0002638,2]
[341701695,1731107432752,-500.0,0.0002638,2]
[341701696,1731107432762,-500.0,0.0002638,2]
[341701697,1731107432772,-500.0,0.0002638,2]
[341701698,1731107432781,-500.0,0.0002638,2]
[341701699,1731107432791,-500.0,0.0002638,2]
[341701700,1731107432800,-500.0,0.0002638,2]
[341701701,1731107432810,-500.0,0.0002638,2]
[341701702,1731107432819,-501.6427327,0.0002638,2]
[341701703,1731107432829,-501.5084308,0.0002638,2]
[341701704,1731107432838,-500.0,0.0002638,2]
[341701705,1731107432847,-500.0,0.0002638,2]
[341701706,1731107432856,-500.0,0.0002638,2]
[341701707,1731107432866,-500.0,0.0002638,2]
[341701708,1731107432875,-507.89139519,0.0002638,2]
[341701709,1731107432885,-500.0,0.0002638,2]
[341701710,1731107432895,-500.0,0.0002638,2]
[341701711,1731107432905,-519.26121529,0.0002638,2]
[341701712,1731107432914,-500.0,0.0002638,2]
[341701713,1731107432924,-500.0,0.0002638,2]
[341701714,1731107432933,-500.0,0.0002638,2]
[341701715,1731107432943,-515.03575915,0.0002638,2]
[341701716,1731107432952,-348.88782277,0.0002638,2]
[341701717,1731107432961,-500.0,0.0002638,2]
[341701718,1731107432971,-500.0,0.0002638,2]
[341701719,1731107432980,-500.0,0.0002638,2]
[341701720,1731107432989,-509.2061198,0.0002638,2]
[341701721,1731107432999,-500.0,0.0002638,2]
[341701722,1731107433008,-500.0,0.0002638,2]
[341701723,1731107433018,-500.0,0.0002638,2]
[341701724,1731107433027,-501.99514826,0.0002638,2]
[341701725,1731107433036,-500.0,0.0002638,2]
[341701726,1731107433046,-503.43504948,0.0002638,2]
[341701727,1731107433055,-500.0,0.0002638,2]
[341701728,1731107433065,-568.36743545,0.0002638,2]
[341701729,1731107433078,-500.0,0.0002638,2]
[341701730,1731107433087,-532.27509647,0.0002638,2]
[341701731,1731107433097,-503.28979221,0.0002638,2]
[341701732,1731107433107,-500.0,0.0002638,2]
[341701733,1731107433117,-500.0,0.0002638,2]
[341701734,1731107433126,-500.0,0.0002638,2]
[341701735,1731107433136,-92.3758515,0.0002638,2]
[341701736,1731107433209,-407.6241485,0.0002638,2]
[341701737,1731107433219,-355.6058515,0.0002638,2]
[341701738,1731107433231,-144.3941485,0.0002638,2]
[341701739,1731107433241,-189.386134,0.0002638,2]
[341701740,1731107433253,-310.613866,0.0002638,2]
[341701741,1731107433262,-5.48543399,0.0002638,2]
[341701742,1731107433275,-494.51456601,0.0002638,2]
[341701743,1731107433284,-433.31068187,0.0002638,2]
[341701744,1731107433294,-500.0,0.0002638,2]
[341701745,1731107433303,-500.0,0.0002638,2]
[341701746,1731107433312,-509.68905568,0.0002638,2]
[341701747,1731107433322,-500.0,0.0002638,2]
[341701748,1731107433331,-500.0,0.0002638,2]
[341701749,1731107433340,-500.0,0.0002638,2]
[341701750,1731107433350,-405.72820469,0.0002638,2]
[341701751,1731107433359,-500.0,0.0002638,2]
[341701752,1731107433368,-200.0,0.0002638,2]
[341701753,1731107433379,-528.99017279,0.0002638,2]
[341701754,1731107433389,-151.0,0.0002638,7]
[341701755,1731107433399,-301.999999,0.0002638,7]
[341701756,1731107433409,-500.0,0.0002638,2]
[341701757,1731107433418,-500.0,0.0002638,2]
[341701758,1731107433428,-500.0,0.0002638,2]
[341701759,1731107433438,-500.0,0.00026512,2]
[341701760,1731107433447,-500.0,0.00026512,2]
[341701761,1731107433457,-500.0,0.0002655,2]
[341701762,1731107433467,-507.17951078,0.00026654,2]
[341701763,1731107433477,-458.47404901,0.00026654,2]
[341701764,1731107433487,-627.54615864,0.00026654,2]
[341701765,1731107433496,-500.0,0.00026654,2]
[341701766,1731107433505,-420.0,0.00026688,2]
[341701767,1731107433515,-500.0,0.00026786,2]
[341701768,1731107433524,-300.8916,0.00026786,2]
[341701769,1731107433535,-162.213846,0.00026819,2]
[341701770,1731107433545,-332.90869307,0.00026844,2]
[341701771,1731107433554,-500.0,0.00026928,2]
[341701772,1731107433564,-162.213846,0.00026953,2]
[341701773,1731107433574,-500.0,0.0002706,2]
[341701774,1731107433583,-223.0,0.00027089,2]
[341701775,1731107433592,-500.0,0.00027202,2]
[341701776,1731107433602,-500.0,0.00027334,2]
[341701777,1731107433611,-500.0,0.00027397,2]
[341701778,1731107433621,-500.0,0.00027476,2]
[341701779,1731107433630,-174.81473754,0.00027546,2]
[341701780,1731107433646,-348.88520069,0.00027546,2]
[341701781,1731107433656,-500.0,0.00027608,2]
[341701782,1731107433665,-6406.67,0.00027626,10]
[341701783,1731107433675,-300.54479931,0.00027636,10]
[341701784,1731107433686,-847.953925,0.00027636,10]
[341701827,1731107438563,-503.37083985,0.00025964,2]
[341701828,1731107438573,-374.20443999,0.00025964,2]
[341701829,1731107438582,-5024.93408933,0.00027636,10]
[341701847,1731107459581,167.543695,0.00013973,2]
[341701849,1731107571950,694.44444444,0.00020843,2]
[341701850,1731107883403,694.44444444,0.00020843,2]
[341701852,1731108134152,167.109578,0.00013973,2]
[341701854,1731108196330,694.44444444,0.00020843,2]
[341701859,1731108496993,1471.73951465,0.00031741,30]
[341701860,1731108509042,694.44444444,0.00020843,2]
[341701861,1731108520335,298.41516181,0.00031741,30]
[341701862,1731108524151,22003.48202723,0.00031741,120]
[341701899,1731108632472,-694.44444444,0.0002254,2]
[341701901,1731108632481,-183.164383,0.00022766,2]
[341701903,1731108632490,-3315.26631523,0.0002285,2]
[341701905,1731108632499,-217.17052679,0.00022865,2]
[341701907,1731108632509,-3000.0,0.0002289,2]
[341701909,1731108632518,-659.357628,0.00022965,2]
[341701911,1731108632527,-300.0,0.00023846,2]
[341701913,1731108632536,-300.0,0.00023846,2]
[341701915,1731108632546,-1566.68287408,0.00023847,2]
[341701917,1731108632555,-508.06272751,0.00023884,2]
[341701919,1731108632564,-500.0,0.00023884,2]
[341701921,1731108632573,-546.85239922,0.00023884,2]
[341701923,1731108632584,-78.45913334,0.00023884,2]
[341701925,1731108632593,-33715.6637093,0.00023884,2]
[341701927,1731108632602,-200.076926,0.00023947,2]
[341701929,1731108632611,-500.0,0.00024144,2]
[341701931,1731108632620,-8727.13957557,0.00024145,2]
[341701953,1731108632947,-2064.5055936,0.00024145,2]
[341701955,1731108632959,-14108.35483083,0.00024145,2]
[341701957,1731108632969,-500.0,0.00024418,2]
[341701958,1731108632979,-500.0,0.00024626,2]
[341701959,1731108632988,-353.28523849,0.00024626,2]
[341701960,1731108633305,-146.71476151,0.00024626,2]
[341701961,1731108633314,-500.0,0.00024626,2]
[341701962,1731108633324,-500.0,0.00024626,2]
[341701963,1731108633333,-500.0,0.00024626,2]
[341701964,1731108633343,-500.0,0.00024626,2]
[341701965,1731108633352,-500.0,0.00024626,2]
[341701966,1731108633361,-500.0,0.00024626,2]
[341701967,1731108633371,-512.35021148,0.00024626,2]
[341701968,1731108633380,-371.15473056,0.00024626,2]
[341701973,1731108638472,-694.44444444,0.00022116,2]
[341701974,1731108638482,-217.17052677,0.00023356,2]
[341701975,1731108638492,-128.84526944,0.00024626,2]
[341701976,1731108638501,-500.0,0.00024626,2]
[341701977,1731108638510,-500.0,0.00024626,2]
[341701978,1731108638519,-500.0,0.00024626,2]
[341701979,1731108638529,-500.0,0.00024626,2]
[341701980,1731108638538,-500.0,0.00024626,2]
[341701981,1731108638547,-500.0,0.00024626,2]
[341701982,1731108638557,-500.0,0.00024626,2]
[341701983,1731108638566,-500.0,0.00024626,2]
[341701984,1731108638576,-500.0,0.00024692,2]
[341701985,1731108638585,-175.516737,0.00024777,2]
[341701986,1731108638595,-175.516737,0.00024794,2]
[341701987,1731108638604,-175.516737,0.00024812,2]
[341701988,1731108638613,-175.516737,0.0002483,2]
[341701989,1731108638624,-175.516737,0.00024848,2]
[341701990,1731108638633,-175.516737,0.00024865,2]
[341701991,1731108638642,-175.516737,0.00024883,2]
[341701992,1731108638651,-175.516737,0.00024901,2]
[341701993,1731108638660,-1566.68287404,0.0002496,2]
[341701994,1731108638670,-6530.36,0.0002499,10]
[341701995,1731108638679,-5441.96,0.0002499,10]
[341701996,1731108638689,-2952.29159975,0.00025,2]
[341701997,1731108638756,-19434.33340204,0.00025,2]
[341701998,1731108638766,-642.12532962,0.00025217,2]
[341701999,1731108638775,-200.076926,0.00025317,2]
[341702000,1731108638784,-500.0,0.00025669,2]
[341702001,1731108638794,-500.0,0.00025669,2]
[341702002,1731108638803,-152.79097722,0.00025669,2]
[341702003,1731108638812,-500.0,0.00025669,2]
[341702004,1731108638821,-500.0,0.00025669,2]
[341702005,1731108638830,-500.0,0.00025669,2]
[341702006,1731108638839,-502.12051968,0.00025669,2]
[341702007,1731108638848,-500.0,0.00025669,2]
[341702008,1731108638857,-500.0,0.00025669,2]
[341702009,1731108638866,-500.0,0.00025669,2]
[341702010,1731108638875,-500.0,0.00025669,2]
[341702011,1731108638884,-500.0,0.00025669,2]
[341702012,1731108638893,-508.73102846,0.00025669,2]
[341702013,1731108638902,-503.08182075,0.00025669,2]
[341702014,1731108638911,-500.0,0.00025669,2]
[341702015,1731108638920,-500.0,0.00025768,2]
[341702016,1731108638929,-420.0,0.00025864,2]
[341702017,1731108638939,-183.164383,0.0002587,2]
[341702018,1731108638949,-696.59275,0.00025907,2]
[341702019,1731108638958,-605.27493186,0.00025944,2]
[341702020,1731108638967,-500.0,0.00025944,2]
[341702021,1731108638977,-4534.97,0.00025953,10]
[341702022,1731108638987,-345.78560239,0.0002596,2]
[341702023,1731108638996,-152.39727109,0.0002596,2]
[341702024,1731108639006,-155.9205799,0.0002596,2]
[341702025,1731108639015,-500.0,0.0002596,2]
[341702026,1731108639024,-500.0,0.0002596,2]
[341702027,1731108639034,-500.0,0.0002596,2]
[341702028,1731108639043,-500.0,0.0002596,2]
[341702029,1731108639052,-500.0,0.0002596,2]
[341702030,1731108639062,-500.0,0.0002596,2]
[341702031,1731108639071,-500.0,0.0002596,2]
[341702032,1731108639080,-500.0,0.0002596,2]
[341702033,1731108639090,-500.0,0.0002596,2]
[341702034,1731108639100,-346.55159757,0.0002596,2]
[341702035,1731108639110,-500.0,0.0002596,2]
[341702036,1731108639119,-500.0,0.0002596,2]
[341702037,1731108639129,-500.0,0.0002596,2]
[341702038,1731108639139,-500.0,0.0002596,2]
[341702039,1731108639148,-500.0,0.0002596,2]
[341702040,1731108639158,-500.0,0.0002596,2]
[341702041,1731108639168,-307.83828707,0.0002596,2]
[341702055,1731108644509,-217.17052677,0.00023847,2]
[341702056,1731108644519,-191.73366694,0.0002596,2]
[341702058,1731108644758,-0.42804599,0.0002596,2]
[341702059,1731108644767,-404.83361284,0.0002596,2]
[341702061,1731108644776,-500.0,0.0002596,2]
[341702062,1731108644785,-500.0,0.0002596,2]
[341702064,1731108644794,-600.0,0.0002596,2]
[341702065,1731108644803,-500.0,0.0002596,2]
[341702066,1731108644812,-500.0,0.0002596,2]
[341702067,1731108644822,-500.0,0.0002596,2]
[341702068,1731108644831,-500.0,0.0002596,2]
[341702069,1731108644840,-433.87040143,0.0002596,2]
[341702070,1731108644849,-500.0,0.0002596,2]
[341702071,1731108644858,-500.0,0.0002596,2]
[341702072,1731108644867,-500.0,0.0002596,2]
[341702073,1731108644877,-500.0,0.0002596,2]
[341702074,1731108644886,-500.0,0.0002596,2]
[341702075,1731108644896,-500.0,0.0002596,2]
[341702076,1731108644905,-500.0,0.0002596,2]
[341702077,1731108644915,-500.0,0.0002596,2]
[341702078,1731108644924,-500.0,0.0002596,2]
[341702079,1731108644933,-500.0,0.0002596,2]
[341702080,1731108644943,-500.0,0.0002596,2]
[341702081,1731108644952,-500.0,0.0002596,2]
[341702082,1731108644961,-500.0,0.0002596,2]
[341702083,1731108644971,-500.0,0.0002596,2]
[341702084,1731108644980,-500.0,0.0002596,2]
[341702085,1731108644989,-203.24570299,0.0002596,2]
[341702086,1731108644999,-500.0,0.0002596,2]
[341702087,1731108645008,-500.0,0.0002596,2]
[341702088,1731108645018,-500.0,0.0002596,2]
[341702089,1731108645027,-500.0,0.0002596,2]
[341702090,1731108645037,-500.0,0.0002596,2]
[341702092,1731108645046,-500.0,0.0002596,2]
[341702094,1731108645056,-500.0,0.0002596,2]
[341702096,1731108645066,-498.74693002,0.0002596,2]
[341702237,1731108646444,-1.25306998,0.0002596,2]
[341702239,1731108646455,-500.0,0.0002596,2]
[341702241,1731108646466,-500.0,0.0002596,2]
[341702244,1731108646476,-500.0,0.0002596,2]
[341702246,1731108646487,-500.0,0.0002596,2]
[341702248,1731108646497,-500.0,0.0002596,2]
[341702250,1731108646508,-500.0,0.0002596,2]
[341702252,1731108646518,-576.94600382,0.0002596,2]
[341702254,1731108646528,-500.0,0.0002596,2]
[341702256,1731108646538,-500.0,0.0002596,2]
[341702258,1731108646548,-500.0,0.0002596,2]
[341702260,1731108646559,-500.0,0.0002596,2]
[341702262,1731108646568,-500.0,0.0002596,2]
[341702264,1731108646578,-500.0,0.0002596,2]
[341702267,1731108646588,-500.0,0.0002596,2]
[341702269,1731108646599,-500.0,0.0002596,2]
[341702271,1731108646609,-500.0,0.0002596,2]
[341702273,1731108646622,-500.0,0.0002596,2]
[341702275,1731108646632,-500.0,0.0002596,2]
[341702277,1731108646642,-500.0,0.0002596,2]
[341702278,1731108646653,-500.0,0.0002596,2]
[341702279,1731108646663,-500.0,0.0002596,2]
[341702280,1731108646674,-500.0,0.0002596,2]
[341702281,1731108646684,-500.0,0.0002596,2]
[341702282,1731108646697,-500.0,0.0002596,2]
[341702283,1731108646707,-500.0,0.0002596,2]
[341702284,1731108646718,-500.0,0.0002596,2]
[341702285,1731108646728,-500.0,0.0002596,2]
[341702286,1731108646739,-500.0,0.0002596,2]
[341702287,1731108646750,-500.0,0.0002596,2]
[341702288,1731108646760,-500.0,0.0002596,2]
[341702289,1731108646770,-500.0,0.0002596,2]
[341702290,1731108646782,-500.0,0.0002596,2]
[341702291,1731108646793,-523.24506596,0.0002596,2]
[341702292,1731108646804,-500.0,0.0002596,2]
[341702293,1731108646814,-500.0,0.0002596,2]
[341702294,1731108646824,-500.0,0.0002596,2]
[341702295,1731108646834,-500.0,0.0002596,2]
[341702296,1731108646844,-500.0,0.0002596,2]
[341702297,1731108646854,-500.0,0.0002596,2]
[341702298,1731108646863,-500.0,0.00025963,2]
[341702299,1731108646874,-500.0,0.00025963,2]
[341702300,1731108646884,-500.0,0.00025963,2]
[341702301,1731108646894,-500.0,0.00025963,2]
[341702302,1731108646903,-433.98750291,0.00025963,2]
[341702303,1731108646913,-501.33015017,0.00025963,2]
[341702304,1731108646923,-500.0,0.00025963,2]
[341702305,1731108646933,-586.95092265,0.00025963,2]
[341702306,1731108646942,-517.24202184,0.00025963,2]
[341702307,1731108646954,-307.25456988,0.00025963,2]
[341702308,1731108646963,-232.86196743,0.00025963,2]
[341702309,1731108646973,-451.93351943,0.00025963,2]
[341702310,1731108646983,-500.0,0.00025963,2]
[341702311,1731108646992,-500.0,0.00025963,2]
[341702312,1731108647002,-500.0,0.00025963,2]
[341702313,1731108647012,-265.34610832,0.00025963,2]
[341702314,1731108647021,-572.3266652,0.00025963,2]
[341702315,1731108647030,-500.0,0.00025963,2]
[341702316,1731108647039,-500.0,0.00025963,2]
[341702317,1731108647049,-500.0,0.00025963,2]
[341702318,1731108647058,-500.0,0.00025963,2]
[341702320,1731108647067,-501.0542681,0.00025963,2]
[341702322,1731108647077,-272.44879828,0.00025963,2]
[341702324,1731108647086,-500.0,0.00025963,2]
[341702326,1731108647096,-500.0,0.00025963,2]
[341702328,1731108647105,-314.62047113,0.00025963,2]
[341702330,1731108647115,-500.0,0.00025963,2]
[341702332,1731108647124,-532.92217204,0.00025963,2]
[341702335,1731108647134,-500.0,0.00025963,2]
[341702336,1731108647155,-500.0,0.00025963,2]
[341702338,1731108647173,-500.0,0.00025963,2]
[341702340,1731108647182,-509.33459431,0.00025963,2]
[341702343,1731108647192,-500.0,0.00025963,2]
[341702345,1731108647203,-500.0,0.00025963,2]
[341702347,1731108647212,-500.0,0.00025963,2]
[341702349,1731108647224,-514.48330949,0.00025963,2]
[341702351,1731108647234,-500.0,0.00025963,2]
[341702353,1731108647243,-500.0,0.00025963,2]
[341702355,1731108647253,-500.0,0.00025963,2]
[341702357,1731108647263,-500.0,0.00025963,2]
[341702359,1731108647272,-500.0,0.00025963,2]
[341702360,1731108647281,-389.84250407,0.00025963,2]
[341702362,1731108647291,-510.47489483,0.00025963,2]
[341702364,1731108647307,-509.30573176,0.00025963,2]
[341702366,1731108647316,-250.0,0.00025963,2]
[341702367,1731108647325,-504.44371767,0.00025963,2]
[341702369,1731108647334,-500.0,0.00025963,2]
[341702371,1731108647343,-500.0,0.00025963,2]
[341702373,1731108647352,-505.99412047,0.00025963,2]
[341702375,1731108647362,-500.40970733,0.00025963,2]
[341702376,1731108647371,-500.0,0.00025963,2]
[341702378,1731108647380,-500.0,0.00025963,2]
[341702380,1731108647390,-501.46585132,0.00025963,2]
[341702381,1731108647399,-500.0,0.00025963,2]
[341702383,1731108647407,-500.0,0.00025963,2]
[341702385,1731108647417,-504.11219345,0.00025963,2]
[341702387,1731108647426,-500.0,0.00025963,2]
[341702389,1731108647435,-316.06489205,0.00025963,2]
[341702390,1731108647445,-500.0,0.00025963,2]
[341702392,1731108647455,-500.0,0.00025963,2]
[341702394,1731108647464,-500.0,0.00025963,2]
[341702395,1731108647474,-500.0,0.00025963,2]
[341702397,1731108647484,-500.0,0.00025963,2]
[341702399,1731108647493,-500.0,0.00025963,2]
[341702401,1731108647503,-500.0,0.00025963,2]
[341702402,1731108647513,-500.0,0.00025963,2]
[341702404,1731108647523,-500.0,0.00025963,2]
[341702406,1731108647532,-500.0,0.00025963,2]
[341702408,1731108647541,-500.0,0.00025963,2]
[341702409,1731108647551,-500.0,0.00025963,2]
[341702411,1731108647560,-637.28712029,0.00025963,2]
[341702413,1731108647570,-633.88040911,0.00025963,2]
[341702415,1731108647580,-500.0,0.00025963,2]
[341702416,1731108647590,-500.0,0.00025963,2]
[341702418,1731108647600,-500.0,0.00025963,2]
[341702420,1731108647609,-500.0,0.00025963,2]
[341702422,1731108647624,-500.0,0.00025963,2]
[341702424,1731108647634,-186.93338743,0.00025963,2]
[341702425,1731108647643,-500.0,0.00025963,2]
[341702427,1731108647652,-500.0,0.00025963,2]
[341702429,1731108647663,-500.0,0.00025963,2]
[341702430,1731108647672,-500.0,0.00025963,2]
[341702432,1731108647682,-506.60112184,0.00025963,2]
[341702434,1731108647691,-500.0,0.00025963,2]
[341702436,1731108647704,-500.0,0.00025963,2]
[341702438,1731108647715,-500.0,0.00025963,2]
[341702440,1731108647724,-500.0,0.00025963,2]
[341702442,1731108647734,-500.0,0.00025963,2]
[341702443,1731108647743,-500.0,0.00025963,2]
[341702445,1731108647752,-508.9566805,0.00025963,2]
[341702447,1731108647762,-500.0,0.00025963,2]
[341702449,1731108647772,-500.0,0.00025963,2]
[341702450,1731108647781,-516.28331796,0.00025963,2]
[341702452,1731108647791,-503.27015856,0.00025963,2]
[341702454,1731108647801,-369.6015118,0.00025963,2]
[341702456,1731108647810,-351.0,0.00025963,2]
[341702458,1731108647820,-500.74696836,0.00025963,2]
[341702459,1731108647829,-512.65800631,0.00025964,2]
[341702461,1731108647838,-500.0,0.00025964,2]
[341702463,1731108647847,-517.36091961,0.00025964,2]